bitfinex/quotes_ETHUSD_20250626
["timestamp","ask_amount","ask_price","bid_price","bid_amount"]
[1750905202731,8.596,2467.2,2466.8,4.05378727]
[1750905203744,8.596,2467.2,2467.0,0.2024]
[1750905204350,0.2024,2467.4,2467.0,0.2024]
[1750905204518,1.81,2467.1,2467.0,0.2024]
[1750905204718,1.81,2467.1,2467.0,0.62800661]
[1750905204942,1.81,2467.1,2467.0,4.68151289]
[1750905205650,1.81,2467.1,2467.0,0.62800661]
[1750905205825,1.81,2467.1,2467.0,0.2024]
[1750905207752,19.9449,2467.1,2466.0,0.57773008]
[1750905207969,0.2024,2466.7,2466.0,4.05502946]
[1750905208275,9.4009,2466.6,2466.2,0.2024]
[1750905208464,9.6033,2466.6,2466.2,0.2024]
[1750905209563,10.56619206,2466.6,2466.2,0.2024]
[1750905209775,10.96289206,2466.5,2466.2,0.2024]
[1750905210086,0.96289206,2466.4,2466.2,0.2024]
[1750905210440,0.96289206,2466.3,2466.2,0.2024]
[1750905211670,10.7765,2466.2,2465.5,0.7963]
[1750905211833,2.77189206,2466.1,2465.8,0.2024]
[1750905212030,0.96289206,2466.0,2465.8,0.2024]
[1750905212235,0.9672963,2465.9,2465.8,0.2024]
[1750905212671,1.809,2466.1,2465.8,4.25787839]
[1750905212971,1.81,2466.0,2465.9,4.4810912]
[1750905213352,1.81,2466.0,2465.9,4.6834912]
[1750905213955,7.5443,2466.5,2465.9,5.50848576]
[1750905213956,0.96730583,2466.4,2465.9,5.50848576]
[1750905214159,2.77730583,2466.3,2466.1,4.0549856]
[1750905214379,0.96730583,2466.2,2466.1,4.0549856]
[1750905214579,0.96730583,2466.2,2466.1,4.99109274]
[1750905214782,0.96730583,2466.2,2466.1,5.19349274]
[1750905216573,0.96730583,2466.2,2466.1,1.13850714]
[1750905217083,0.96730583,2466.2,2466.1,0.2024]
[1750905217781,0.96730583,2466.2,2465.7,4.85213973]
[1750905217984,2.5793,2466.3,2466.0,0.2024]
[1750905218156,0.96794667,2466.2,2465.7,4.05553973]
[1750905218349,2.5793,2466.3,2465.8,4.2578429]
[1750905218350,0.96794667,2466.1,2465.8,4.2578429]
[1750905218546,2.7817,2466.3,2465.8,4.2578429]
[1750905218547,0.96794667,2466.0,2465.9,4.05531448]
[1750905218769,0.96798945,2466.2,2466.0,0.2024]
[1750905218979,0.96798945,2466.1,2466.0,0.2024]
[1750905221085,0.96798945,2466.1,2465.9,4.25769516]
[1750905221266,1.81,2466.2,2465.9,4.25769516]
[1750905221467,0.96815517,2466.1,2465.9,5.17215818]
[1750905221682,1.81,2466.2,2466.1,0.2024]
[1750905221869,2.77812076,2466.2,2466.1,0.2024]
[1750905223159,3.57202076,2466.2,2465.9,0.91446302]
[1750905223359,0.96812076,2466.1,2466.0,0.2024]
[1750905224460,1.81,2466.2,2466.0,0.2024]
[1750905225294,2.77798818,2466.2,2466.0,0.2024]
[1750905225695,1.81,2466.2,2466.0,0.2024]
[1750905226298,2.77801832,2466.2,2466.0,0.2024]
[1750905227798,0.96801832,2466.1,2466.0,0.2024]
[1750905228694,2.77801832,2466.2,2466.0,0.2024]
[1750905228995,0.96801832,2466.1,2466.0,0.2024]
[1750905229509,2.77801832,2466.2,2466.0,0.2024]
[1750905229800,0.96801832,2466.1,2466.0,0.2024]
[1750905230378,2.77801832,2466.2,2466.0,0.2024]
[1750905231202,0.96801832,2466.1,2466.0,0.2024]
[1750905231371,2.77801832,2466.2,2466.0,0.2024]
[1750905232199,0.96801832,2466.1,2466.0,0.2024]
[1750905232403,2.77801832,2466.2,2466.0,0.2024]
[1750905233204,0.96801832,2466.1,2466.0,0.2024]
[1750905233423,2.77801832,2466.2,2466.0,0.2024]
[1750905233727,10.0,2465.9,2465.4,0.2024]
[1750905234025,0.9935,2465.7,2465.3,0.2024]
[1750905234324,9.51101832,2465.6,2465.3,0.2024]
[1750905236729,0.75,2465.4,2464.4,0.7663]
[1750905236913,1.71801832,2465.4,2465.0,0.2024]
[1750905237113,0.96801832,2465.3,2465.0,0.2024]
[1750905237296,1.71801832,2465.4,2465.0,0.2024]
[1750905237894,0.96801832,2465.4,2465.0,0.2024]
[1750905238129,1.795,2465.4,2465.2,0.2024]
[1750905239308,1.795,2465.4,2465.2,0.79571347]
[1750905240298,1.795,2465.4,2465.2,0.2024]
[1750905240719,1.795,2465.4,2464.8,4.0570958]
[1750905240929,2.76301832,2465.4,2465.0,0.2024]
[1750905242120,1.795,2465.4,2464.9,4.05690776]
[1750905242434,1.795,2465.3,2465.2,0.2024]
[1750905243549,1.795,2465.3,2464.7,4.84124965]
[1750905243703,1.795,2465.3,2465.0,0.2024]
[1750905244344,0.8023,2465.2,2464.8,0.48412497]
[1750905244556,0.8023,2465.2,2464.8,4.74360972]
[1750905246056,0.8023,2465.2,2464.8,0.68652497]
[1750905246414,0.8023,2465.2,2464.8,4.74360141]
[1750905246772,0.8023,2465.2,2464.8,0.68652497]
[1750905247054,0.8023,2465.2,2464.8,4.7436459]
[1750905247447,0.8023,2465.2,2464.8,0.68652497]
[1750905247624,0.8023,2465.2,2464.8,4.74362174]
[1750905247945,0.8023,2465.2,2464.8,0.68652497]
[1750905248859,0.8023,2465.2,2464.8,4.25943078]
[1750905249562,0.8023,2465.2,2464.8,0.2024]
[1750905251364,0.8023,2465.2,2464.3,4.05790644]
[1750905251365,10.0,2465.2,2464.3,4.05790644]
[1750905251665,0.7659,2464.9,2464.5,0.2024]
[1750905251870,1.795,2464.8,2464.5,0.2024]
[1750905253664,11.795,2464.8,2464.1,4.0581718]
[1750905253866,0.2024,2464.7,2464.3,0.2024]
[1750905254165,3.56844075,2464.8,2464.3,4.05789201]
[1750905254359,3.56844075,2464.8,2464.4,0.2024]
[1750905254555,3.56825754,2464.8,2464.4,0.2024]
[1750905254870,10.0,2464.7,2464.4,0.2024]
[1750905255057,10.0,2464.7,2464.4,0.6284292]
[1750905256975,10.0,2464.7,2464.4,4.68619485]
[1750905257466,10.0,2464.7,2464.4,0.6284292]
[1750905258662,1.792,2465.0,2464.6,4.05745354]
[1750905258858,1.792,2465.0,2464.9,4.05695971]
[1750905259057,1.792,2465.4,2465.0,0.7824]
[1750905259281,11.792,2465.4,2465.0,0.7824]
[1750905259481,11.792,2465.4,2465.2,0.2024]
[1750905259671,12.76008444,2465.4,2465.0,0.2024]
[1750905260160,11.792,2465.4,2465.2,0.2024]
[1750905260361,12.7603159,2465.4,2465.2,0.2024]
[1750905260750,11.792,2465.4,2465.2,0.2024]
[1750905261169,1.792,2465.4,2465.2,0.2024]
[1750905261382,1.792,2465.4,2465.2,0.70804703]
[1750905261579,1.792,2465.4,2465.2,4.76449191]
[1750905261784,1.792,2465.4,2465.2,0.70804703]
[1750905261990,1.792,2465.4,2465.2,0.2024]
[1750905262188,2.59,2465.4,2465.2,0.2024]
[1750905262378,3.55870295,2465.4,2464.8,0.7599]
[1750905262684,2.59,2465.4,2465.0,0.2024]
[1750905262987,3.55870295,2465.4,2465.0,0.2024]
[1750905263185,0.96870295,2465.3,2465.0,0.2024]
[1750905263352,3.6411103,2465.4,2465.0,0.2024]
[1750905263353,0.96870295,2465.2,2465.0,0.2024]
[1750905263548,10.96870295,2465.3,2465.0,0.2024]
[1750905263773,0.96870295,2465.2,2465.0,0.2024]
[1750905273579,2.76070295,2465.2,2465.0,0.2024]
[1750905273900,1.792,2465.2,2465.0,0.2024]
[1750905274101,1.792,2465.2,2465.0,0.50735497]
[1750905274303,1.792,2465.2,2465.1,0.2024]
[1750905275672,0.97038776,2465.4,2465.1,0.2024]
[1750905275898,1.792,2465.5,2465.3,0.8285]
[1750905276095,0.97038776,2465.4,2465.3,1.0309]
[1750905277487,0.97038776,2465.4,2465.3,1.53963568]
[1750905278105,2.76238776,2465.5,2465.3,1.53963568]
[1750905278615,2.76238776,2465.5,2465.3,5.5958865]
[1750905280086,1.792,2465.5,2465.3,1.53963568]
[1750905280427,1.792,2465.5,2465.4,4.61574445]
[1750905281630,7.81,2466.1,2465.8,0.8216]
[1750905281811,1.792,2466.0,2465.8,0.8216]
[1750905282014,11.792,2466.0,2465.6,0.8216]
[1750905282324,12.76115334,2466.0,2465.8,0.2024]
[1750905282614,0.96915334,2465.9,2465.8,0.2024]
[1750905282987,18.07633664,2465.9,2465.8,0.2024]
[1750905283320,0.2024,2465.8,2465.2,0.2024]
[1750905283498,1.17155334,2465.7,2465.2,0.2024]
[1750905283817,10.96915334,2465.6,2465.2,0.2024]
[1750905284015,11.792,2465.5,2465.2,0.2024]
[1750905284316,11.792,2465.5,2465.1,4.05661078]
[1750905284317,1.792,2465.5,2465.4,0.2024]
[1750905286417,2.76115334,2465.5,2465.4,0.2024]
[1750905288740,2.76115334,2465.5,2465.0,4.87829016]
[1750905289021,0.96915334,2465.4,2465.3,0.2024]
[1750905294043,10.96915334,2465.4,2465.3,0.2024]
[1750905295643,1.792,2465.5,2465.4,4.05613693]
[1750905295865,2.76293922,2465.5,2465.4,0.2024]
[1750905297546,2.76293922,2465.5,2465.4,4.25853693]
[1750905297752,10.0,2465.6,2465.5,4.05597241]
[1750905297958,10.97089174,2465.8,2465.4,1.78849864]
[1750905298158,0.97089174,2465.7,2465.4,0.957]
[1750905298319,0.97089174,2465.7,2465.6,4.05580791]
[1750905298522,10.0,2465.8,2465.6,4.05580791]
[1750905298523,10.97076779,2465.8,2465.6,0.2024]
[1750905298720,10.97076779,2465.8,2465.7,4.05564342]
[1750905298949,10.97076779,2465.8,2465.6,4.25815835]
[1750905299132,10.97076779,2465.8,2465.7,4.05564342]
[1750905299327,10.0,2465.8,2465.7,4.81024342]
[1750905300253,5.68859555,2465.9,2465.8,4.05547895]
[1750905300617,5.68859555,2465.9,2465.8,4.25787895]
[1750905300816,3.89859555,2465.9,2465.8,4.25787895]
[1750905301058,3.89859555,2465.9,2465.8,5.97685415]
[1750905306277,0.2024,2466.7,2466.5,4.05418182]
[1750905306566,2.75845986,2467.1,2466.7,4.05383602]
[1750905306744,1.79,2467.1,2466.8,0.2024]
[1750905308264,1.79,2467.1,2466.8,4.25619805]
[1750905308860,1.79,2467.1,2466.8,0.2024]
[1750905309174,0.7641,2467.0,2466.8,0.2024]
[1750905309360,0.7641,2467.0,2466.4,4.81304112]
[1750905309361,10.7641,2467.0,2466.7,0.2024]
[1750905312275,10.9665,2467.0,2466.5,0.2024]
[1750905312685,10.9665,2467.0,2466.5,4.25671203]
[1750905313172,10.9665,2467.0,2466.5,0.2024]
[1750905313377,13.19010559,2467.0,2466.5,0.2024]
[1750905314367,1.789,2466.9,2466.5,0.2024]
[1750905316378,10.7584,2466.7,2466.0,4.05510561]
[1750905316600,6.9404,2466.6,2466.2,4.05472318]
[1750905317387,14.0475833,2466.6,2466.1,1.0351]
[1750905317557,15.2468233,2466.6,2466.1,0.2024]
[1750905317764,15.2468233,2466.6,2466.1,4.25736824]
[1750905318173,15.2468233,2466.6,2466.1,0.2024]
[1750905318378,15.2468233,2466.6,2466.1,4.25738242]
[1750905319953,15.2468233,2466.6,2466.2,4.05480599]
[1750905320787,14.0475833,2466.6,2466.2,4.05480599]
[1750905321089,6.9404,2466.6,2466.3,4.05457597]
[1750905322471,6.9404,2466.6,2466.2,4.05474037]
[1750905324692,6.9404,2466.6,2466.1,4.25732503]
[1750905325789,6.9404,2466.6,2466.2,4.05479237]
[1750905326397,7.90844724,2466.6,2466.2,4.05479237]
[1750905326703,7.90844724,2466.6,2466.1,4.25731219]
[1750905327267,7.90844724,2466.6,2466.1,0.2024]
[1750905327790,7.90844724,2466.6,2466.1,4.257325]
[1750905328498,0.96804724,2466.5,2466.1,4.257325]
[1750905328698,1.786,2466.4,2466.1,4.257325]
[1750905328898,1.786,2466.4,2466.1,0.2024]
[1750905329104,0.7735,2466.3,2466.1,0.2024]
[1750905329312,0.9759,2466.1,2465.7,0.2024]
[1750905329516,0.7735,2466.5,2465.6,4.81062311]
[1750905329670,12.75564656,2466.4,2466.2,0.2024]
[1750905330477,0.96964656,2466.3,2466.2,0.2024]
[1750905332180,12.75564656,2466.4,2466.2,4.25722118]
[1750905332398,1.786,2466.4,2466.2,5.16392969]
[1750905332704,1.786,2466.4,2466.3,4.05465677]
[1750905333806,1.786,2466.7,2466.5,4.05432799]
[1750905334294,1.786,2466.7,2466.6,0.2024]
[1750905334921,1.786,2466.7,2466.6,4.25656362]
[1750905335582,1.786,2466.7,2466.6,5.16284373]
[1750905337395,1.786,2467.2,2467.1,4.05332227]
[1750905337728,1.786,2467.2,2467.1,4.25572227]
[1750905338723,1.786,2467.2,2467.1,0.2024]
[1750905340119,1.786,2467.2,2467.1,4.25574198]
[1750905340320,1.786,2467.2,2467.1,5.08666494]
[1750905340622,0.9692424,2467.5,2467.1,1.85552296]
[1750905340919,1.786,2468.0,2467.5,4.05257643]
[1750905341219,1.786,2468.0,2467.4,0.2024]
[1750905341381,1.786,2468.0,2467.8,0.2024]
[1750905342938,1.786,2468.4,2467.9,4.05202804]
[1750905343083,1.786,2468.4,2468.2,0.2024]
[1750905343637,1.786,2468.4,2468.3,4.05137138]
[1750905343915,1.786,2468.4,2468.3,4.25377138]
[1750905344311,17.7199,2468.8,2468.3,4.25377138]
[1750905344312,1.786,2468.8,2468.5,4.05092821]
[1750905344514,1.786,2468.8,2468.7,0.2024]
[1750905344724,1.786,2468.8,2468.7,4.25311495]
[1750905347137,1.786,2468.8,2468.7,0.2024]
[1750905347517,1.786,2468.8,2468.0,0.8012]
[1750905347830,1.786,2468.8,2468.6,0.2024]
[1750905348029,11.786,2468.8,2468.6,0.2024]
[1750905348354,11.786,2468.8,2467.6,4.05250141]
[1750905348355,14.8566089,2468.7,2468.3,0.2024]
[1750905349004,10.0,2468.5,2468.3,0.2024]
[1750905349452,10.0,2468.5,2467.6,4.8749158]
[1750905349453,0.7696,2468.4,2467.6,4.8749158]
[1750905349659,1.785,2468.3,2467.9,0.2024]
[1750905349943,11.785,2468.3,2467.9,0.2024]
[1750905350361,15.83644598,2468.3,2467.9,0.2024]
[1750905350540,0.2024,2468.1,2467.7,0.2024]
[1750905351752,10.2024,2468.1,2467.7,0.2024]
[1750905352258,10.2024,2468.1,2467.5,0.2024]
[1750905352259,0.2024,2468.0,2467.5,0.2024]
[1750905353345,0.2024,2468.0,2467.2,0.7654]
[1750905353346,0.2024,2467.8,2467.3,0.2024]
[1750905353570,1.782,2467.7,2467.4,4.05283323]
[1750905354768,1.782,2467.7,2467.3,4.25534024]
[1750905354965,1.782,2467.7,2467.4,4.05282041]
[1750905355158,1.782,2467.7,2467.6,0.2024]
[1750905356537,1.782,2467.9,2467.6,0.2024]
[1750905356773,1.782,2467.9,2467.6,0.62790725]
[1750905357638,1.782,2467.9,2467.7,4.05228174]
[1750905358760,1.782,2467.9,2467.6,0.62790725]
[1750905359084,1.782,2467.9,2467.8,4.25459223]
[1750905363267,11.504,2468.3,2468.1,4.05161047]
[1750905363804,21.504,2468.3,2468.2,0.2024]
[1750905364181,21.504,2468.3,2467.8,4.05211195]
[1750905364379,21.504,2468.3,2468.0,0.2024]
[1750905366186,0.7563,2468.2,2468.0,0.2024]
[1750905366505,7.4833,2468.2,2467.8,0.2024]
[1750905366707,10.0,2468.1,2467.8,0.2024]
[1750905367010,0.7563,2468.0,2467.8,0.2024]
[1750905367378,0.2024,2467.8,2467.4,0.2024]
[1750905367702,1.782,2467.7,2467.4,0.2024]
[1750905368276,11.782,2467.7,2467.4,0.2024]
[1750905368474,1.782,2467.7,2467.4,0.2024]
[1750905369506,0.816,2467.6,2467.4,0.2024]
[1750905372107,1.782,2467.7,2467.4,0.2024]
[1750905372321,1.782,2467.7,2467.4,0.62793801]
[1750905373401,1.782,2467.7,2467.4,0.2024]
[1750905373780,2.74954923,2467.7,2467.4,0.2024]
[1750905374320,1.782,2467.7,2467.4,0.2024]
[1750905374813,2.749534,2467.7,2467.4,0.2024]
[1750905375216,2.74982591,2467.7,2467.4,0.2024]
[1750905377219,0.96782591,2467.7,2467.4,1.03325395]
[1750905377399,1.783,2467.8,2467.6,4.05237874]
[1750905377717,1.783,2467.8,2467.7,4.05235644]
[1750905382940,0.96914222,2468.1,2467.8,4.05214097]
[1750905383113,11.78,2468.2,2467.8,4.05214097]
[1750905383311,12.74909307,2468.2,2468.0,0.2024]
[1750905383919,0.96909307,2468.2,2468.1,0.8262]
[1750905384111,3.53318609,2469.1,2468.1,0.8262]
[1750905384434,10.96898609,2469.0,2468.5,4.050898]
[1750905384635,10.96898609,2469.0,2468.6,4.05084151]
[1750905384938,0.96898609,2468.9,2468.6,4.05087012]
[1750905385138,10.96898609,2469.0,2468.6,4.05087012]
[1750905385328,10.96898609,2469.0,2468.4,4.05109288]
[1750905385329,10.96898609,2469.0,2468.5,4.0509866]
[1750905385843,10.96898609,2469.0,2468.5,4.05102515]
[1750905385844,0.7842,2468.8,2468.5,4.05102515]
[1750905386041,0.7842,2468.8,2468.6,4.05084756]
[1750905386239,7.69198609,2468.9,2468.1,0.8262]
[1750905386444,6.723,2468.9,2468.2,4.05153553]
[1750905386749,6.723,2468.9,2468.6,4.05079122]
[1750905386914,6.723,2468.9,2468.7,4.45576025]
[1750905387106,6.723,2468.9,2468.1,0.8262]
[1750905387419,7.69016713,2468.9,2468.5,4.05102348]
[1750905387619,7.69016713,2468.9,2468.4,4.05106857]
[1750905387841,0.8263,2468.8,2467.9,0.7646]
[1750905388040,0.8263,2468.8,2468.3,4.05132409]
[1750905388227,0.8263,2468.8,2468.4,4.0510698]
[1750905388408,0.8263,2468.8,2468.5,4.0510044]
[1750905389436,0.8263,2468.8,2468.6,4.05086225]
[1750905390346,0.8263,2468.8,2468.3,4.81589538]
[1750905390548,0.8263,2468.8,2468.4,0.48158954]
[1750905390914,0.8263,2468.8,2468.4,4.53266951]
[1750905391117,0.8263,2468.8,2468.4,0.48158954]
[1750905392648,0.8205,2468.6,2467.7,4.81586227]
[1750905392949,10.8205,2468.4,2467.9,4.052008]
[1750905393120,11.78693334,2468.4,2467.9,4.052008]
[1750905393515,11.78693334,2468.4,2467.7,0.7636]
[1750905393740,10.8205,2468.4,2468.0,4.0517347]
[1750905393921,10.8205,2468.4,2468.1,4.45684669]
[1750905394257,10.8205,2468.4,2468.2,0.2024]
[1750905394751,10.0,2468.4,2468.2,0.2024]
[1750905395527,10.0,2468.4,2468.0,4.05179336]
[1750905395714,0.8197,2468.3,2468.1,0.2024]
[1750905396632,1.0221,2468.3,2467.9,0.2024]
[1750905396835,12.25125902,2468.3,2467.9,0.2024]
[1750905397050,7.5478,2468.2,2467.9,0.2024]
[1750905397849,7.5478,2468.2,2467.9,4.25441028]
[1750905398062,6.72,2468.2,2468.0,4.05181094]
[1750905398222,6.72,2468.2,2468.0,4.25426385]
[1750905398530,6.72,2468.2,2468.0,4.55928023]
[1750905398741,6.72,2468.2,2468.1,0.2024]
[1750905399441,6.72,2468.2,2467.7,4.05228635]
[1750905399640,6.72,2468.2,2467.9,0.2024]
[1750905401555,6.72,2468.2,2468.0,4.05182386]
[1750905401761,10.7774,2468.4,2468.1,0.2024]
[1750905402276,11.74461911,2468.4,2468.1,0.2024]
[1750905402436,11.74461911,2468.4,2467.7,4.80358096]
[1750905402762,0.2024,2468.3,2467.9,0.2024]
[1750905402975,2.24700191,2468.3,2467.9,0.2024]
[1750905403263,3.21422102,2468.3,2467.9,0.2024]
[1750905405357,10.0,2468.1,2467.9,0.2024]
[1750905405538,1.779,2468.0,2467.9,0.2024]
[1750905406265,0.96792542,2468.1,2467.9,0.7642]
[1750905406466,0.96798669,2468.5,2468.0,4.05186385]
[1750905406762,12.74698669,2468.6,2468.0,4.93867805]
[1750905406968,2.74698669,2468.6,2468.2,4.05153553]
[1750905407269,2.74698669,2468.6,2468.2,4.05137303]
[1750905407437,2.74698669,2468.6,2468.3,4.05136975]
[1750905407766,2.74698669,2468.6,2468.2,4.05146265]
[1750905408065,2.74698669,2468.6,2468.1,4.05167618]
[1750905408245,0.96798669,2468.5,2468.2,4.05152653]
[1750905408442,0.96798669,2468.5,2468.1,0.57026904]
[1750905409273,0.96798669,2468.5,2468.1,4.62196719]
[1750905409574,0.96798669,2468.5,2468.1,4.05169815]
[1750905410082,0.96798669,2468.5,2468.3,4.05136783]
[1750905410273,0.96798669,2468.5,2468.1,4.05160069]
[1750905410455,0.96798669,2468.5,2467.9,4.39867917]
[1750905410456,0.96798669,2468.5,2468.2,4.05153266]
[1750905410651,0.96798669,2468.5,2467.9,0.34670507]
[1750905410890,11.77268669,2468.4,2467.5,4.05265733]
[1750905411058,0.96798669,2468.3,2467.8,4.05203285]
[1750905412476,0.96798669,2468.3,2467.9,4.05201906]
[1750905412954,0.96798669,2468.2,2467.9,4.05201906]
[1750905413154,1.777,2468.1,2468.0,4.05186385]
[1750905416277,1.777,2468.1,2468.0,4.25426385]
[1750905416462,0.96798669,2468.3,2468.1,4.05166257]
[1750905416778,1.777,2468.2,2468.0,4.25419743]
[1750905417553,1.777,2468.2,2468.0,0.2024]
[1750905417873,1.777,2468.2,2468.0,4.25417963]
[1750905418079,1.777,2468.2,2468.0,0.2024]
[1750905418278,2.74498669,2468.2,2468.0,0.2024]
[1750905418467,1.777,2468.2,2468.0,4.25426261]
[1750905418850,2.74498669,2468.2,2468.0,4.25426261]
[1750905419059,1.777,2468.2,2468.0,4.25426261]
[1750905419459,2.74498669,2468.2,2468.0,4.25426261]
[1750905419660,1.777,2468.2,2468.0,4.25426261]
[1750905419862,1.777,2468.2,2468.0,0.2024]
[1750905420057,2.74498669,2468.2,2468.0,0.2024]
[1750905420261,1.777,2468.2,2468.0,0.2024]
[1750905421181,0.97022651,2468.1,2468.0,5.16422574]
[1750905421386,1.777,2468.2,2468.1,4.05169968]
[1750905421989,2.74718852,2468.2,2468.0,5.16415644]
[1750905422155,1.777,2468.2,2468.0,5.16415644]
[1750905423681,0.97049073,2468.1,2468.0,0.2024]
[1750905427051,0.97049073,2468.1,2468.0,5.00996385]
[1750905427398,2.74749073,2468.8,2468.5,4.80674314]
[1750905427565,1.777,2468.8,2468.7,4.05071495]
[1750905427769,0.8156672,2469.4,2469.1,4.05005872]
[1750905427770,1.777,2469.2,2469.1,4.05005872]
[1750905428004,2.74673873,2469.2,2469.1,4.05005872]
[1750905428299,1.777,2469.2,2469.1,4.05005872]
[1750905428483,1.777,2469.2,2469.0,4.05017016]
[1750905430228,1.777,2469.2,2469.1,4.05005872]
[1750905430788,1.777,2469.2,2468.9,4.05035715]
[1750905430990,0.0441672,2469.4,2469.3,4.04973069]
[1750905431187,0.0441672,2469.4,2469.3,4.80543069]
[1750905432282,0.0441672,2469.4,2468.0,0.7557]
[1750905432283,0.7715,2469.3,2468.0,0.7557]
[1750905432484,0.0441672,2469.4,2468.8,0.7557]
[1750905432783,10.0441672,2469.4,2469.0,4.0500999]
[1750905433309,10.0441672,2469.4,2468.9,4.0502722]
[1750905433715,0.0441672,2469.4,2468.9,4.0502722]
[1750905433919,1.8201672,2469.4,2468.8,4.80619337]
[1750905434100,1.8201672,2469.4,2468.8,6.36327013]
[1750905434298,1.8201672,2469.4,2468.9,4.05034858]
[1750905434624,1.8201672,2469.4,2468.8,6.363256]
[1750905434816,1.8201672,2469.4,2468.8,0.7557]
[1750905435009,1.8201672,2469.4,2468.7,4.05062977]
[1750905435186,2.78594321,2469.4,2468.7,4.05068659]
[1750905435517,1.8201672,2469.4,2468.9,4.05027451]
[1750905435818,1.8201672,2469.4,2468.7,4.05071495]
[1750905435819,1.8201672,2469.4,2468.7,4.05064846]
[1750905436023,1.8201672,2469.4,2468.7,5.61398771]
[1750905436317,1.8201672,2469.4,2468.8,4.0505267]
[1750905437421,1.8201672,2469.4,2469.1,0.2024]
[1750905438712,1.8201672,2469.4,2469.1,4.05002885]
[1750905438915,0.2024,2469.2,2468.7,0.2024]
[1750905440297,0.2024,2469.2,2468.8,0.2024]
[1750905440531,0.8087,2469.1,2468.8,0.2024]
[1750905442801,4.05036214,2469.0,2468.8,0.2024]
[1750905443130,4.05036214,2469.0,2468.3,0.8179]
[1750905443131,10.2024,2468.8,2468.3,0.2024]
[1750905443333,10.2024,2468.8,2467.8,4.05213325]
[1750905443334,0.2024,2468.6,2468.0,4.05176299]
[1750905443632,0.2024,2468.6,2468.2,0.2024]
[1750905444840,0.2024,2468.4,2468.0,0.2024]
[1750905445036,1.774,2468.3,2468.0,0.2024]
[1750905445227,2.04914,2468.3,2468.0,0.2024]
[1750905445946,0.775,2468.2,2468.0,0.2024]
[1750905446233,0.9774,2468.0,2467.4,0.2024]
[1750905446438,0.2024,2467.9,2467.4,0.2024]
[1750905446605,1.774,2467.8,2467.4,0.2024]
[1750905447407,1.774,2467.8,2467.4,4.25520206]
[1750905447625,1.775,2467.7,2467.5,4.05258334]
[1750905447828,0.751,2468.2,2467.6,0.7574]
[1750905448019,1.775,2468.1,2467.7,0.2024]
[1750905448606,2.08207225,2468.1,2467.7,0.2024]
[1750905449745,1.775,2468.1,2467.7,0.2024]
[1750905451446,1.775,2468.1,2467.7,4.25463941]
[1750905451614,1.775,2468.1,2468.0,0.2024]
[1750905456747,1.775,2468.1,2468.0,4.25426385]
[1750905457353,9.718,2468.4,2468.1,0.8329]
[1750905457661,9.718,2468.4,2468.1,4.88455823]
[1750905457821,9.718,2468.4,2468.1,1.3485113]
[1750905458020,19.718,2468.4,2468.3,0.2024]
[1750905458522,19.718,2468.4,2468.1,0.2024]
[1750905459866,0.7799,2468.3,2468.1,0.2024]
[1750905460556,19.718,2468.4,2468.1,4.25409539]
[1750905460759,21.493,2468.4,2468.1,0.2024]
[1750905461255,21.493,2468.4,2468.2,4.05143943]
[1750905461457,21.493,2468.4,2468.3,0.2024]
[1750905462030,21.493,2468.4,2467.9,4.05192006]
[1750905462237,0.7779,2468.3,2468.1,0.2024]
[1750905463034,10.7779,2468.3,2468.1,0.2024]
[1750905463538,10.9803,2468.3,2467.8,0.2024]
[1750905463743,10.9803,2468.3,2467.8,4.25452262]
[1750905464171,12.41907842,2468.3,2467.8,4.25452262]
[1750905464864,12.41907842,2468.3,2467.8,0.2024]
[1750905465557,12.41907842,2468.3,2467.8,4.25457948]
[1750905465753,12.41907842,2468.3,2467.8,0.2024]
[1750905467457,0.96763813,2468.2,2467.8,0.2024]
[1750905467655,3.52197434,2468.2,2467.8,0.2024]
[1750905467860,6.715,2468.1,2467.8,0.2024]
[1750905468363,0.8303,2468.0,2467.5,4.05256387]
[1750905468569,1.775,2467.9,2467.6,4.25490562]
[1750905468960,1.775,2467.9,2467.6,0.2024]
[1750905469347,1.775,2467.9,2467.6,4.25489338]
[1750905469546,1.775,2467.9,2467.6,4.25483796]
[1750905470369,1.775,2467.9,2467.7,4.05235518]
[1750905470566,1.775,2467.9,2467.6,4.25483]
[1750905471368,1.775,2467.9,2467.7,4.05233736]
[1750905471870,1.775,2467.9,2467.6,4.25489457]
[1750905472051,1.775,2467.9,2467.7,4.05228482]
[1750905472451,2.74263813,2467.9,2467.7,4.05228482]
[1750905472867,1.775,2467.9,2467.6,4.25487547]
[1750905473173,1.775,2467.9,2467.6,4.25484309]
[1750905473368,1.775,2467.9,2467.6,0.2024]
[1750905473561,1.775,2467.9,2467.6,4.25490435]
[1750905474150,1.775,2467.9,2467.7,4.05235576]
[1750905474496,1.775,2467.9,2467.6,0.2024]
[1750905475578,1.775,2467.9,2467.7,4.05233335]
[1750905477678,1.775,2467.9,2467.6,4.2548331]
[1750905478279,1.775,2467.9,2467.7,4.05235438]
[1750905478576,1.775,2467.9,2467.7,4.05233356]
[1750905478771,1.775,2467.9,2467.7,4.05235404]
[1750905479787,1.775,2467.9,2467.6,4.25484398]
[1750905480151,2.72727,2467.9,2467.6,0.2024]
[1750905480353,0.97034861,2467.8,2467.6,0.2024]
[1750905480549,1.775,2467.9,2467.6,4.25490893]
[1750905480788,0.97032548,2467.8,2467.6,0.2024]
[1750905481084,1.775,2467.9,2467.6,0.2024]
[1750905481297,0.97032074,2467.8,2467.6,0.2024]
[1750905481455,1.775,2467.9,2467.6,0.2024]
[1750905481655,0.97032302,2467.8,2467.6,0.2024]
[1750905481854,1.775,2467.9,2467.6,4.2549205]
[1750905482067,0.97031645,2467.8,2467.7,4.05235644]
[1750905482484,1.775,2467.9,2467.6,4.25483746]
[1750905483159,0.97025043,2467.8,2467.6,4.25483746]
[1750905483781,0.97025043,2467.8,2467.6,0.2024]